[Event "Czech Championship 2022"]
[Site "Usti nad Labem"]
[Date "2022.05.18"]
[Round "5.23"]
[White "Sura, Jaroslav"]
[Black "Pokrupa, Marek"]
[Result "0-1"]
[ECO "C00"]
[WhiteElo "2010"]
[BlackElo "2117"]
[Annotator "TA"]
[PlyCount "100"]
[EventDate "2022.05.12"]
[EventType "swiss"]
[EventCountry "CZE"]
[SourceTitle "playchess.com"]
[Source "ChessBase"]
[SourceQuality "1"]
[TimeControl "40/5400+30:1800+30"]

{[%evp 22,100,-22,-28,0,0,31,-25,165,174,154,0,131,169,919,527,481,493,625,620,614,507,582,507,597,0,322,0,575,514,1361,1353,1329,0,483,0,1322,1289,1271,347,265,141,786,775,693,95,250,-64,-85,-241,-241,-241,-243,-292,-283,-245,-248,-269,-244,-238,-187,-583,-585,-560,-552,-570,-541,-733,-731,-667,-593,-856,-834,-2548,-2457,-2293,-1872,-2491,-1716,-5393,-2692]} 1. e4 {[%emt 0:00:03]} e6 {[%emt 0:00:29]} 2. d3 {[%emt 0:00:06]} c5 {[%emt 0:02:48]} 3. g3 {[%emt 0:00:22]} Nc6 {[%emt 0:00:08]} 4. Bg2 {[%emt 0:00:07]} d5 {[%emt 0:02:36]} 5. Nd2 {[%emt 0:01:08]} Nf6 {[%emt 0:01:02]} 6. Ngf3 {[%emt 0:00:33]} Be7 {[%emt 0:04:50]} 7. O-O {[%emt 0:00:33]} O-O {[%emt 0:03:18]} 8. Re1 {[%emt 0:02:14]} b5 {[%emt 0:07:24]} 9. e5 {[%emt 0:02:44]} Nd7 {[%emt 0:00:51]} 10. Nf1 {[%emt 0:00:15]} Bb7 {[%emt 0:08:48]} 11. h4 {[%emt 0:00:29]} Qc7 {[%emt 0:01:47]} 12. Bf4 {[%emt 0:00:39]} d4 {[%emt 0:06:56] C00: French: Unusual White 2nd moves.} 13. N1h2 {[%emt 0:02:55]} Nb6 {[%emt 0:09:55]} (13... Rfb8 $5 {[%cal Rc6b4]}) 14. Ng5 {[%emt 0:15:57]} (14. Ng4 $14 Nd5 15. Bd2) 14... Nb4 $2 {[%emt 0:05:43] [#]} (14... Bxg5 $11 {and Black is okay.} 15. Bxg5 Rfb8) 15. Nxh7 $146 {[%emt 0:08:55][%mdl 512]} ({Predecessor:} 15. Ne4 N4d5 16. Qh5 Nxf4 17. gxf4 Nd5 18. Qg4 Kh8 19. Ng5 h6 20. Be4 Nb4 21. Re2 {0-1 (29) Borjanovic,V-Cabarkapa,V (2285) Yugoslavia 1994}) 15... Kxh7 {[%emt 0:01:36]} 16. Qh5+ $1 {[%emt 0:00:14]} Kg8 {[%emt 0:00:02] Hoping for ...Bxg2.} 17. Ng4 $1 {[%emt 0:01:04][%cal Og4f6]} N6d5 {[%emt 0:21:54] Against Nf6+} (17... Nxc2 $2 18. Nf6+ $1 {[%mdl 512]} gxf6 19. Qg4+ Kh8 20. exf6 Bxf6 21. Bxc7 $18) (17... Rfc8) 18. Be4 {[%emt 0:27:57][%csl Ge4][%cal Rh5h7]} g6 {[%emt 0:01:53]} 19. Qh6 {[%emt 0:06:47]} Nxf4 {[%emt 0:01:51]} 20. gxf4 {[%emt 0:00:44] Nf6+ would kill now.} f5 {[%emt 0:07:11] Strongly threatening ...Rf7.} 21. Qxg6+ {[%emt 0:03:29]} (21. exf6 $2 Bxf6 22. Bxb7 (22. Qxg6+ $2 Qg7 $17) 22... Qxb7 $19) 21... Kh8 {[%emt 0:00:01]} 22. Qh6+ {[%emt 0:00:15]} Kg8 {[%emt 0:00:09]} 23. Qg6+ {[%emt 0:00:22]} (23. Qxe6+ Kg7 $18) 23... Kh8 {[%emt 0:00:02]} 24. Qh6+ $40 {[%emt 0:00:17][%mdl 128] White is up to no good.} (24. Qh5+ $1 Kg7 25. Qh6+ Kf7 26. Qh5+ (26. Bxb7 $2 Rh8 $19) 26... Kg7 27. Nh6) 24... Kg8 {[%emt 0:00:02]} 25. Qxe6+ {[%emt 0:00:10]} Kh8 {[%emt 0:00:43]} (25... Kg7 $142) 26. Qh6+ {[%emt 0:00:19]} Kg8 {[%emt 0:00:02]} 27. Qe6+ {[%emt 0:01:14]} (27. Qg6+ $142 Kh8 28. Qh5+ Kg7 29. Kh2 $1 (29. Bxf5 Rxf5 30. Qh6+ Kf7 $14) 29... fxe4 30. Rg1) 27... Kh8 {[%emt 0:00:05][%cal Oc7b6]} 28. Qh6+ {[%emt 0:07:07]} (28. Bxb7 $142 Qxb7 29. Qh6+ Kg8 30. Qg6+ Kh8 31. e6) 28... Kg8 {[%emt 0:00:04]} 29. Qg6+ {[%emt 0:00:26]} Kh8 {[%emt 0:00:28]} 30. Bxf5 $2 {[%emt 0:02:33]} (30. Qh5+ Kg7 31. Kh2 $1 (31. Bxf5 Rxf5 32. Qh6+ Kf7 $14) 31... fxe4 32. Rg1) 30... Rxf5 {[%emt 0:00:43]} 31. Qxf5 {[%emt 0:00:02]} ({White must play} 31. Qh6+ $1 $18 Kg8 32. Qg6+ Kh8 33. Qxf5 Bxh4 34. e6) 31... Qc6 $4 {[%emt 0:05:55][%mdl 8192]} (31... Bxh4 $16 32. e6 Qh7 33. Qxh7+ (33. Qxc5 Bf6 $17) (33. Qe5+ Kg8 $14) 33... Kxh7) 32. Re4 {[%emt 0:01:19]} Qe8 {[%emt 0:01:25]} 33. Rae1 $2 {[%emt 0:04:51]} ({Weaker is} 33. Nf6 Qf7 $11) (33. Kh2 $18 {and White stays clearly on top.} Qg8 34. Nh6) 33... Nxc2 $2 {[%emt 0:01:18]} (33... Qg8 $16) 34. Nf6 $2 {[%emt 0:06:53]} (34. Rc1 $1 $18 {[%cal Rc1c2]}) 34... Qf7 $1 $15 {[%emt 0:00:58]} 35. Qg5 {[%emt 0:02:21] Inhibits Rg8.} Bxf6 $19 {[%emt 0:02:24] The board is on fire.} 36. Qh6+ {[%emt 0:02:21] [#]} Qh7 $1 {[%emt 0:01:02]} (36... Kg8 $2 37. exf6 Nxe1 38. Rxe1 $18) 37. Qxf6+ {[%emt 0:00:06]} Qg7+ {[%emt 0:00:01]} 38. Qxg7+ {[%emt 0:01:05]} Kxg7 {[%emt 0:00:02]} 39. f5 {[%emt 0:00:24]} Nxe1 {[%emt 0:00:54]} 40. Rxe1 {[%emt 0:00:36][%mdl 4096] Endgame KRB-KR} Rh8 {[%emt 0:02:06]} 41. Kh2 $2 {[%emt 0:11:02]} (41. f3) 41... Rxh4+ {[%emt 0:10:47] Black is clearly winning.} 42. Kg3 {[%emt 0:00:06] [#]} Rh1 {[%emt 0:00:42]} 43. Re2 {[%emt 0:00:25]} Rd1 {[%emt 0:03:45] Against Rd2} 44. Kf4 {[%emt 0:02:04]} Rxd3 {[%emt 0:04:35] And now ...Rf3+ would win.} 45. Kg5 {[%emt 0:03:18]} Bf3 {[%emt 0:05:21]} 46. f6+ {[%emt 0:03:13]} Kf8 {[%emt 0:00:20]} 47. Re1 {[%emt 0:00:43]} Rd1 {[%emt 0:01:08]} 48. Rxd1 {[%emt 0:02:13]} Bxd1 {[%emt 0:00:44]} 49. e6 {[%emt 0:01:06]} Bf3 {[%emt 0:01:01] aiming for ...d3.} 50. f7 {[%emt 0:06:14]} Bd5 {[%emt 0:00:40] Weighted Error Value: White=1.47/Black=0.29 (precise)} (50... d3 $2 {gets mated.} 51. Kf6 Bh5 52. e7#) 0-1

[Event "Czech Championship 2022"]
[Site "Usti nad Labem"]
[Date "2022.05.18"]
[Round "5.24"]
[White "Paulus, Vaclav"]
[Black "Jirasko, Miroslav"]
[Result "1-0"]
[ECO "B12"]
[WhiteElo "2093"]
[BlackElo "2091"]
[Annotator "TA"]
[PlyCount "97"]
[EventDate "2022.05.12"]
[EventType "swiss"]
[EventCountry "CZE"]
[SourceTitle "playchess.com"]
[Source "ChessBase"]
[SourceQuality "1"]
[TimeControl "40/5400+30:1800+30"]

{[%evp 9,96,0,0,0,20,-76,20,23,25,35,49,44,42,15,10,-67,-69,-60,-73,-43,-49,-94,-92,-120,-120,-129,-112,-151,-103,-95,-92,-96,-92,-92,-60,-62,-67,-103,-76,-78,0,-34,0,-78,-65,-77,-1,-6,0,-155,-154,-170,-141,-164,-147,-164,-140,-151,-159,-156,-144,-126,-95,-94,-68,-73,-68,-67,-37,-68,0,0,0,0,0,0,0,0,178,162,658,640,621,22,581,543,29973,29974,29999]} 1. e4 {[%emt 0:00:01]} c6 {[%emt 0:00:05]} 2. d4 {[%emt 0:00:04]} d5 {[%emt 0:00:03]} 3. e5 {[%emt 0:00:02]} c5 {[%emt 0:00:04]} 4. dxc5 {[%emt 0:00:02]} e6 {[%emt 0:00:09]} 5. a3 {[%emt 0:00:03]} Bxc5 {[%emt 0:00:06]} 6. Qg4 {[%emt 0:00:02] B12: Caro-Kann: Advance Variation.} Ne7 {[%emt 0:00:58]} 7. Nf3 {[%emt 0:00:10]} (7. Bd3 $11) 7... Ng6 {[%emt 0:06:09]} (7... Qb6 $1 $17 8. Qxg7 Bxf2+ 9. Kd1 Rg8 10. Qxh7 Nbc6) 8. Bd3 $11 {[%emt 0:00:31] The position is equal.} O-O {[%emt 0:02:57]} 9. O-O {[%emt 0:00:18] [#]} Bb6 $146 {[%emt 0:10:28]} ({Predecessor:} 9... f5 10. exf6 Qxf6 11. Qh5 Nf4 12. Bxh7+ Kh8 13. Bxf4 Qxf4 14. Ng5 {1-0 (14) Ragger,M (2685)-Hoefelsauer,T (2324) Innsbruck 2021}) 10. Qh5 {[%emt 0:01:46] Threatens to win with Ng5.} Qe8 {[%emt 0:06:01]} 11. Ng5 {[%emt 0:02:47][%csl Gg5][%cal Rh5h7]} h6 {[%emt 0:00:11]} 12. Nxf7 {[%emt 0:00:22]} Qxf7 $15 {[%emt 0:00:00]} 13. Bxg6 {[%emt 0:00:09] [#]} Qxf2+ $1 {[%emt 0:02:54]} 14. Rxf2 {[%emt 0:00:18]} Rxf2 {[%emt 0:00:06]} 15. h3 {[%emt 0:03:17] aiming for Kh2.} Rf5+ $1 {[%emt 0:00:07][%mdl 64] Discovered Attack} 16. Kh2 {[%emt 0:00:04]} Rxh5 {[%emt 0:00:05]} 17. Bxh5 {[%emt 0:00:04]} Bd4 {[%emt 0:01:58]} 18. Bf4 {[%emt 0:02:22]} Nc6 {[%emt 0:03:32]} (18... Bxb2 $142 19. Ra2 Bd4) 19. Nc3 $17 {[%emt 0:00:39]} Bd7 {[%emt 0:10:31]} 20. Re1 {[%emt 0:00:42]} Rf8 {[%emt 0:00:25]} 21. Bg3 {[%emt 0:00:41]} Rf5 {[%emt 0:04:00]} 22. Bg4 {[%emt 0:01:52]} Rg5 {[%emt 0:00:06][%cal Rd4e5]} 23. Ne2 {[%emt 0:07:32]} Bxe5 {[%emt 0:09:00]} 24. Nf4 {[%emt 0:00:25] Against h5} Nd8 {[%emt 0:21:03]} (24... Kf7 $17) 25. c3 {[%emt 0:01:14]} g6 {[%emt 0:05:37]} 26. Rxe5 {[%emt 0:01:38]} Rxe5 {[%emt 0:00:06]} 27. Nxg6 {[%emt 0:00:05]} Rg5 {[%emt 0:02:37]} (27... Re4 $17) 28. Ne5 $11 {[%emt 0:00:23]} h5 {[%emt 0:00:38] Hoping for ...Rxe5.} 29. Nxd7 {[%emt 0:04:59]} (29. Nf3 $1 $11) 29... hxg4 {[%emt 0:00:05][%mdl 4096] Endgame KRN-KBN} 30. Nf6+ {[%emt 0:00:13]} Kg7 {[%emt 0:00:06]} 31. Nxg4 {[%emt 0:00:20]} Nc6 {[%emt 0:00:15]} 32. Ne3 {[%emt 0:00:57]} Kg6 {[%emt 0:01:51]} (32... Kf7 33. h4 Rh5) 33. Bf4 {[%emt 0:01:22]} Rh5 {[%emt 0:00:59]} 34. g4 {[%emt 0:00:17]} Rh8 {[%emt 0:00:20]} 35. Bg3 {[%emt 0:00:22]} d4 {[%emt 0:01:51]} 36. cxd4 {[%emt 0:01:25]} Nxd4 {[%emt 0:00:07]} 37. Kg2 {[%emt 0:02:58]} Rc8 {[%emt 0:00:24]} 38. h4 {[%emt 0:00:51]} Nc2 {[%emt 0:01:34]} (38... Kf6 $5 {[%cal Rc8c1]}) 39. Nf1 {[%emt 0:00:44]} Rf8 {[%emt 0:01:47]} ({Black should try} 39... Rd8 $1 $15) 40. Nd2 {[%emt 0:00:35]} Ne3+ {[%emt 0:00:22]} 41. Kh3 {[%emt 0:30:30]} Nf1 {[%emt 0:31:07]} 42. h5+ {[%emt 0:00:09]} Kh6 {[%emt 0:00:45]} 43. Bd6 {[%emt 0:01:20]} Rf2 {[%emt 0:00:30]} (43... Rf7 44. Ne4 Ne3) (43... Rf7 $1 $11 44. Ne4 Ne3) 44. Ne4 $18 {[%emt 0:00:25][%mdl 1024] White has strong compensation.} Re2 {[%emt 0:01:34]} (44... Rxb2 45. Kh4 Kh7 46. Ng5+ Kg8 47. h6) (44... Rf3+ 45. Kh4 Ne3 46. g5+ Kh7) (44... Rxb2 45. Kh4 Kh7 46. Ng5+ Kg8 47. h6 $18) (44... Rf3+ 45. Kh4 Ne3 46. g5+ Kh7) 45. Bf8+ {[%emt 0:02:44]} Kh7 {[%emt 0:00:11][%csl Gf1][%cal Re2h2] [#]} 46. Nf6+ $1 {[%emt 0:00:03]} Kh8 {[%emt 0:00:26][%csl Gf1][%cal Re2h2] [#]} 47. Kh4 $1 {[%emt 0:00:41] Threatening mate with h6.} Ne3 {[%emt 0:02:52]} 48. h6 {[%emt 0:01:36][%csl Gh6][%cal Rf8g7]} Nd5 {[%emt 0:00:14]} 49. Bg7# {[%emt 0:00:06] What a bad dream for Black.  Weighted Error Value: White=0.23 (precise) /Black=0.54} 1-0

[Event "Czech Championship 2022"]
[Site "Usti nad Labem"]
[Date "2022.05.19"]
[Round "6.1"]
[White "Zwardon, Vojtech"]
[Black "Navara, David"]
[Result "1/2-1/2"]
[ECO "A28"]
[WhiteElo "2482"]
[BlackElo "2682"]
[Annotator "TA"]
[PlyCount "100"]
[EventDate "2022.05.12"]
[EventType "swiss"]
[EventCountry "CZE"]
[SourceTitle "playchess.com"]
[Source "ChessBase"]
[SourceQuality "1"]
[TimeControl "40/5400+30:1800+30"]

{[%evp 12,100,0,0,8,0,0,0,0,-31,-34,-32,-30,-26,-33,-39,-21,-10,-14,-24,-15,-19,0,0,0,0,0,0,0,-31,0,-16,0,0,0,-64,-68,-63,-56,-62,-59,-77,-93,-78,-21,-25,-25,-20,-24,-27,0,-65,-34,-42,-39,-65,-69,-65,-48,-53,-8,-8,-8,-8,-8,-8,-8,-8,-8,-8,-8,-8,-8,-8,-8,-8,-8,-8,-8,-8,-8,-8,-8,-8,-8,-8,-8,-8,-8,-8,-8]} 1. c4 {[%emt 0:05:05]} Nf6 {[%emt 0:00:09]} 2. Nc3 {[%emt 0:00:06]} e5 {[%emt 0:00:05]} 3. Nf3 {[%emt 0:00:02]} Nc6 {[%emt 0:00:07]} 4. e3 {[%emt 0:00:04]} Bb4 {[%emt 0:00:04]} 5. Qc2 {[%emt 0:00:04]} Bxc3 {[%emt 0:01:13]} 6. Qxc3 {[%emt 0:00:05]} Qe7 {[%emt 0:00:11]} 7. a3 {[%emt 0:00:02] 7.a3 has lost popularity.} O-O {[%emt 0:00:14] A28: English Opening: Four Knights Variation.} 8. b4 {[%emt 0:06:15]} d5 {[%emt 0:00:24]} 9. cxd5 {[%emt 0:02:03]} Nxd5 {[%emt 0:00:09]} 10. Qc5 {[%emt 0:04:48]} Qxc5 {[%emt 0:00:18]} 11. bxc5 {[%emt 0:00:04]} e4 {[%emt 0:00:11]} 12. Ng5 {[%emt 0:01:04]} Bf5 {[%emt 0:00:14] [#]} 13. Bb2 $146 {[%emt 0:03:14][%cal Og2g4]} ({Predecessor:} 13. f3 exf3 14. gxf3 Rfe8 15. Kf2 h6 16. Nh3 Ne5 17. Ng1 Nd3+ 18. Bxd3 Bxd3 19. Bb2 {0-1 (50) Rodgaard,J (2331)-Thybo,J (2496) Denmark 2019}) 13... h6 {[%emt 0:15:26]} (13... f6 $5 {[%cal Rf6g5]} 14. Bc4 Rfd8 $15) 14. g4 {[%emt 0:01:10]} Bg6 {[%emt 0:00:42]} ({Resist} 14... hxg5 15. gxf5 Rfe8 16. Rb1 $14) ({Don't take} 14... Bxg4 15. Rg1 $16) 15. Bc4 {[%emt 0:02:59]} Rfd8 {[%emt 0:15:09]} 16. Nh3 {[%emt 0:00:27]} f6 {[%emt 0:02:14]} 17. Nf4 {[%emt 0:18:22]} Bf7 {[%emt 0:00:12]} 18. Ne2 {[%emt 0:00:59]} Kf8 {[%emt 0:11:21][%cal Od5b4]} 19. Rc1 {[%emt 0:00:24]} Na5 {[%emt 0:18:54]} ({Much less strong is} 19... Nde7 20. Bxf7 Kxf7 21. Ng3 $14) 20. Ba2 {[%emt 0:00:36]} b5 {[%emt 0:00:37][%cal Od5f4]} 21. cxb6 {[%emt 0:05:07]} cxb6 {[%emt 0:00:13]} (21... axb6 {is interesting.} 22. Bxd5 Rxd5 23. Rxc7 Rb5) 22. h4 {[%emt 0:05:29][%cal Og4g5]} Rac8 {[%emt 0:02:54]} 23. Ng3 {[%emt 0:10:01]} (23. g5 $11) 23... Rxc1+ $15 {[%emt 0:03:12]} 24. Bxc1 {[%emt 0:00:01]} Rc8 {[%emt 0:10:20]} 25. O-O {[%emt 0:00:43] [#]} Nxe3 $1 {[%emt 0:00:09]} 26. dxe3 {[%emt 0:06:30] Hoping for Bxf7.} (26. fxe3 Bxa2) 26... Bxa2 {[%emt 0:00:08]} 27. Bd2 {[%emt 0:00:08]} Be6 {[%emt 0:13:14]} (27... Nc4 $17 28. Rc1 a5) 28. Bb4+ $11 {[%emt 0:00:48]} Kg8 {[%emt 0:00:46] aiming for ...Nc4.} 29. Bxa5 {[%emt 0:00:27]} bxa5 {[%emt 0:00:05][%mdl 4096] Endgame KRB-KRN} 30. g5 $1 {[%emt 0:00:06]} Rc3 {[%emt 0:05:50]} 31. Rb1 {[%emt 0:03:34]} ({White should try} 31. g6 $11) 31... fxg5 {[%emt 0:00:40]} 32. hxg5 {[%emt 0:00:05]} Rxa3 {[%emt 0:00:17]} 33. Rb7 {[%emt 0:00:30]} hxg5 {[%emt 0:00:25]} 34. Rxa7 {[%emt 0:03:48]} Bd5 {[%emt 0:00:46]} 35. Nf5 {[%emt 0:00:03] [#] Ne7+ is the strong threat.} Kf8 {[%emt 0:00:04]} 36. Nxg7 {[%emt 0:02:29] The position is equal.} a4 {[%emt 0:00:26][%cal Ba5a4,Ba4a3][%mdl 32] Threatens to win with ...Ra1+.} 37. Nh5 {[%emt 0:00:07]} Ra1+ {[%emt 0:00:32]} 38. Kh2 {[%emt 0:01:01]} a3 {[%emt 0:00:18]} 39. Nf6 {[%emt 0:00:02]} Be6 {[%emt 0:01:09] And now ...a2 would win.} 40. Nxe4 {[%emt 0:01:05]} a2 {[%emt 0:00:12]} 41. Nc3 {[%emt 0:31:31]} Rf1 {[%emt 0:03:52]} 42. Nxa2 {[%emt 0:00:00]} Rxf2+ {[%emt 0:00:05]} 43. Kg3 {[%emt 0:00:00]} Re2 {[%emt 0:00:12]} 44. Kf3 {[%emt 0:00:00]} Rxa2 {[%emt 0:01:51]} 45. Rxa2 {[%emt 0:00:00]} Bxa2 {[%emt 0:00:06] KB-KP} 46. Kg4 {[%emt 0:00:00]} Ke7 {[%emt 0:00:06] ( -> ...Kf6)} 47. Kxg5 {[%emt 0:00:00]} Ke6 {[%emt 0:00:05]} 48. e4 {[%emt 0:00:00]} Ke5 {[%emt 0:00:06]} 49. Kh4 {[%emt 0:00:00]} Bb1 {[%emt 0:00:03]} 50. Kh3 {[%emt 0:00:00]} Bxe4 {[%emt 0:00:04] Weighted Error Value: White=0.07 (flawless) /Black=0.08 (flawless)} 1/2-1/2

[Event "Czech Championship 2022"]
[Site "Usti nad Labem"]
[Date "2022.05.19"]
[Round "6.2"]
[White "Babula, Vlastimil"]
[Black "Hracek, Zbynek"]
[Result "1/2-1/2"]
[ECO "D37"]
[WhiteElo "2576"]
[BlackElo "2570"]
[Annotator "TA"]
[PlyCount "62"]
[EventDate "2022.05.12"]
[EventType "swiss"]
[EventCountry "CZE"]
[SourceTitle "playchess.com"]
[Source "ChessBase"]
[SourceQuality "1"]
[TimeControl "40/5400+30:1800+30"]

{[%evp 17,62,27,28,26,22,11,42,20,19,8,22,26,17,0,12,0,0,0,0,-41,-32,-35,-28,-49,-34,-58,-56,-55,-46,-46,-41,-41,-52,-42,-49,-50,-54,-58,-30,-31,-20,-18,0,0,-2,-2,-2]} 1. d4 {[%emt 0:00:04]} d5 {[%emt 0:00:05]} 2. c4 {[%emt 0:00:07]} e6 {[%emt 0:00:03]} 3. Nc3 {[%emt 0:00:15]} Nf6 {[%emt 0:00:06]} 4. Nf3 {[%emt 0:00:36]} Be7 {[%emt 0:00:12]} 5. Bf4 {[%emt 0:00:35]} O-O {[%emt 0:00:12]} 6. e3 {[%emt 0:00:25]} c5 {[%emt 0:00:11]} 7. dxc5 {[%emt 0:02:42]} Bxc5 {[%emt 0:00:03]} 8. Qc2 {[%emt 0:00:50]} Nc6 {[%emt 0:00:12]} 9. a3 {[%emt 0:00:34]} Re8 {[%emt 0:00:25]} 10. Bg5 {[%emt 0:12:27][%cal Bf4g5,Bg5h4,Bh4g3][%mdl 32] D37: Queen's Gambit Declined: 5 Bf4.} Be7 {[%emt 0:00:18]} 11. Be2 {[%emt 0:10:36]} h6 {[%emt 0:21:32]} 12. Bh4 {[%emt 0:02:12] White is slightly better.} dxc4 {[%emt 0:05:04]} 13. Bxc4 {[%emt 0:02:25]} Bd7 {[%emt 0:07:54] [#]} 14. Rd1 $146 {[%emt 0:03:26]} ({Predecessor:} 14. O-O Rc8 15. Rfd1 Nh5 16. Bxe7 Qxe7 17. Be2 Nf6 18. Rac1 Red8 19. h3 a6 20. b4 {½-½ (33) Salzmann,S (2340)-Jambrich,J (2303) ICCF email 2019}) 14... Nh5 {[%emt 0:13:45]} 15. Bg3 {[%emt 0:16:17]} Qc8 {[%emt 0:09:13]} 16. Ba2 {[%emt 0:01:06]} Rd8 {[%emt 0:00:15]} 17. Bb1 {[%emt 0:04:22] [#] White wants to mate with Qh7+.} g6 $1 {[%emt 0:05:12]} 18. Ne4 {[%emt 0:04:52]} Nxg3 {[%emt 0:07:29]} 19. hxg3 {[%emt 0:00:13]} Na5 {[%emt 0:00:04] aiming for ...Qxc2.} 20. Nc3 {[%emt 0:10:35]} ({But not} 20. Rxh6 Qxc2 21. Bxc2 Rac8 $17) 20... Kg7 {[%emt 0:04:22]} 21. Rc1 {[%emt 0:04:50]} Bf6 {[%emt 0:05:28]} 22. b4 {[%emt 0:05:53]} Qxc3+ {[%emt 0:07:58]} 23. Qxc3 {[%emt 0:01:18]} Bxc3+ {[%emt 0:00:02]} 24. Rxc3 {[%emt 0:00:08]} Rac8 {[%emt 0:00:10]} 25. Rxc8 {[%emt 0:02:21]} Rxc8 {[%emt 0:00:02]} 26. O-O $1 {[%emt 0:00:32]} Nc4 {[%emt 0:00:28]} 27. Rd1 {[%emt 0:00:31]} Bc6 {[%emt 0:01:59]} ({Reject} 27... Nxa3 28. Rxd7 Rc1+ 29. Kh2 Rxb1 30. Ne5 $11) 28. Rc1 $1 {[%emt 0:05:34]} Nxa3 {[%emt 0:02:03]} 29. Be4 {[%emt 0:00:24] The position is equal.} Rb8 {[%emt 0:07:07]} 30. Bxc6 {[%emt 0:03:57]} bxc6 {[%emt 0:00:01]} 31. Rc3 {[%emt 0:00:28]} Nb5 $1 {[%emt 0:00:51] Weighted Error Value: White=0.07 (flawless) /Black=0.05 (flawless)} 1/2-1/2